bitfinex/quotes_SOLUSD_20250506
["timestamp","ask_amount","ask_price","bid_price","bid_amount"]
[1746524189867,22.12469158,144.57,144.53,20.31892784]
[1746524190159,0.43216673,144.57,144.53,35.0943883]
[1746524190341,15.20762719,144.57,144.53,35.0943883]
[1746524192280,22.12442891,144.58,144.53,35.0943883]
[1746524194378,14.77546046,144.58,144.54,14.77546046]
[1746524194584,7.34841348,144.59,144.54,14.77546046]
[1746524194771,14.77546046,144.58,144.54,14.77546046]
[1746524195481,14.77546046,144.57,144.53,35.0943883]
[1746524195677,14.77546046,144.56,144.53,20.31892784]
[1746524197486,14.77546046,144.57,144.53,35.0943883]
[1746524198983,14.77546046,144.58,144.53,35.0943883]
[1746524199187,14.77546046,144.58,144.54,14.77546046]
[1746524199990,21.69207217,144.58,144.54,21.69395762]
[1746524200286,14.77546046,144.57,144.54,6.91849716]
[1746524204194,21.69207217,144.58,144.54,21.69395762]
[1746524204787,14.77546046,144.58,144.54,21.69395762]
[1746524207186,21.69212336,144.58,144.54,21.69395762]
[1746524207390,14.77546046,144.57,144.54,6.91849716]
[1746524207690,14.77546046,144.57,144.53,35.09423108]
[1746524207867,0.43216673,144.59,144.54,9.45557258]
[1746524208067,9.45557258,144.58,144.54,9.45557258]
[1746524208793,9.45557258,144.58,144.54,16.37367393]
[1746524218992,17.6,144.6,144.56,9.45557258]
[1746524219205,9.45557258,144.61,144.57,9.45557258]
[1746524219588,9.45557258,144.61,144.57,22.85557258]
[1746524220199,9.45557258,144.6,144.57,20.31667243]
[1746524220785,9.45557258,144.59,144.57,13.4]
[1746524222299,16.37198909,144.59,144.57,13.4]
[1746524223104,9.88773931,144.58,144.57,13.4]
[1746524223276,9.88773931,144.58,144.53,29.77430481]
[1746524223474,9.45557258,144.57,144.53,29.77430481]
[1746524223987,9.88773931,144.58,144.53,29.77430481]
[1746524224401,16.80436938,144.58,144.53,29.77430481]
[1746524225799,16.37269235,144.57,144.53,20.31873223]
[1746524226104,9.45557258,144.55,144.53,13.4]
[1746524226598,9.88773931,144.56,144.53,13.4]
[1746524229199,0.43216673,144.56,144.53,13.4]
[1746524229400,16.80544401,144.56,144.53,13.4]
[1746524232500,9.45557258,144.55,144.53,13.4]
[1746524233002,9.45557258,144.54,144.53,13.4]
[1746524233709,16.37407264,144.54,144.53,13.4]
[1746524233900,9.45557258,144.56,144.53,13.4]
[1746524234097,0.43216673,144.55,144.53,13.4]
[1746524234606,9.88773931,144.56,144.53,13.4]
[1746524234905,9.45557258,144.57,144.53,22.85557258]
[1746524235109,27.05557258,144.58,144.54,9.45557258]
[1746524235410,9.45557258,144.58,144.54,9.45557258]
[1746524235611,9.45557258,144.58,144.54,16.37362271]
[1746524236312,0.43216673,144.59,144.55,9.45557258]
[1746524236515,9.88773931,144.59,144.55,9.45557258]
[1746524236810,16.80394912,144.59,144.55,9.45557258]
[1746524238416,9.45557258,144.58,144.54,16.37362271]
[1746524241311,16.37228418,144.58,144.54,9.45557258]
[1746524241508,9.45557258,144.57,144.53,29.77432865]
[1746524241709,9.45557258,144.57,144.53,13.4]
[1746524241710,16.37312062,144.56,144.53,13.4]
[1746524242802,9.45557258,144.56,144.53,13.4]
[1746524243112,16.37285631,144.57,144.53,22.85557258]
[1746524245716,9.88773931,144.56,144.53,13.4]
[1746524246408,9.45557258,144.55,144.53,13.4]
[1746524247720,16.37366928,144.55,144.53,13.4]
[1746524248628,9.45557258,144.54,144.53,13.4]
[1746524248809,6.91897875,144.53,144.49,29.77631928]
[1746524249120,16.37455133,144.53,144.49,22.85557258]
[1746524249494,16.37455133,144.53,144.49,29.77643191]
[1746524249697,16.37430038,144.54,144.5,9.45557258]
[1746524249923,9.45557258,144.54,144.5,9.45557258]
[1746524250526,9.88773931,144.55,144.51,9.45557258]
[1746524250900,0.43216673,144.55,144.51,16.37528919]
[1746524251196,9.45557258,144.55,144.51,16.37528919]
[1746524253602,16.80549048,144.56,144.51,16.37528919]
[1746524254326,16.37382895,144.55,144.51,16.37528919]
[1746524254720,9.45557258,144.55,144.51,16.37528919]
[1746524257523,16.37363373,144.55,144.51,16.37528919]
[1746524257821,9.45557258,144.55,144.51,16.37528919]
[1746524259625,9.45557258,144.55,144.51,9.45557258]
[1746524261536,9.45557258,144.55,144.52,6.91945751]
[1746524261736,0.43216673,144.56,144.52,6.91945751]
[1746524261910,9.45557258,144.55,144.52,6.91945751]
[1746524262721,7.34977234,144.56,144.52,16.37503009]
[1746524263032,9.88773931,144.56,144.52,16.37503009]
[1746524264234,16.80538593,144.56,144.52,16.37503009]
[1746524266431,16.80538593,144.56,144.52,9.45557258]
[1746524268539,16.80538593,144.56,144.51,29.77529907]
[1746524269341,9.45557258,144.55,144.51,29.77529907]
[1746524272644,16.80538593,144.56,144.51,29.77529907]
[1746524275843,9.45557258,144.55,144.51,29.77529907]
[1746524276147,9.45557258,144.55,144.51,13.4]
[1746524276328,9.45557258,144.55,144.51,22.85557258]
[1746524276745,9.45557258,144.53,144.51,13.4]
[1746524277051,9.88773931,144.52,144.48,14.9699]
[1746524277435,16.80743901,144.52,144.48,14.9699]
[1746524279030,16.80743901,144.52,144.48,31.34684098]
[1746524281247,16.80743901,144.52,144.48,24.42547258]
[1746524281451,9.45557258,144.51,144.48,13.4]
[1746524283349,16.37574897,144.51,144.48,13.4]
[1746524284052,9.45557258,144.51,144.48,13.4]
[1746524284351,9.88773931,144.51,144.48,13.4]
[1746524285055,9.88773931,144.51,144.48,20.32123628]
[1746524285349,9.88773931,144.52,144.48,29.77680886]
[1746524285553,9.45557258,144.52,144.48,29.77680886]
[1746524286139,16.37519807,144.52,144.48,29.77680886]
[1746524286454,9.88773931,144.51,144.48,13.4]
[1746524286951,9.45557258,144.49,144.48,13.4]
[1746524287337,9.45557258,144.49,144.44,31.32242135]
[1746524287542,9.45557258,144.48,144.44,31.32242135]
[1746524288048,9.45557258,144.47,144.44,14.9438]
[1746524288646,9.88773931,144.46,144.44,13.4]
[1746524288956,9.45557258,144.45,144.4,13.4]
[1746524289256,9.45557258,144.42,144.4,13.4]
[1746524289560,16.37989063,144.42,144.4,13.4]
[1746524289939,9.45557258,144.42,144.4,13.4]
[1746524290136,9.45557258,144.41,144.4,13.4]
[1746524290548,9.45557258,144.41,144.36,14.9591]
[1746524290857,9.45557258,144.4,144.36,24.41467258]
[1746524291034,9.45557258,144.4,144.36,31.34169292]
[1746524291536,43.30806783,144.45,144.36,13.4]
[1746524291537,9.88773931,144.39,144.36,13.4]
[1746524291736,15.24470459,144.39,144.36,13.4]
[1746524292056,14.81253786,144.38,144.36,13.4]
[1746524293659,0.43216673,144.37,144.36,13.4]
[1746524294651,15.24470459,144.37,144.35,199.93038587]
[1746524294852,14.81253786,144.36,144.35,199.93038587]
[1746524296843,21.73966448,144.36,144.35,199.93038587]
[1746524297546,14.81253786,144.36,144.35,199.93038587]
[1746524298543,21.73966448,144.36,144.35,199.93038587]
[1746524299049,14.81253786,144.36,144.35,199.93038587]
[1746524299459,14.81253786,144.37,144.35,199.93038587]
[1746524300863,15.24470459,144.36,144.35,199.93038587]
[1746524301054,15.38686616,144.36,144.35,199.93038587]
[1746524301260,32.98686616,144.36,144.35,199.93038587]
[1746524302864,39.91399278,144.36,144.35,199.93038587]
[1746524305365,65.91399278,144.36,144.35,199.93038587]
[1746524305764,84.56364164,144.36,144.35,199.93038587]
[1746524306063,66.96364164,144.36,144.35,199.93038587]
[1746524307263,63.6865795,144.36,144.35,79.80115443]
[1746524307561,73.6865795,144.36,144.35,62.43777689]
[1746524307738,73.6865795,144.36,144.35,45.07439935]
[1746524307937,73.6865795,144.36,144.35,29.01939935]
[1746524308345,63.6865795,144.36,144.35,14.89939935]
[1746524308671,73.6865795,144.36,144.35,3.64039935]
[1746524308968,26.0,144.33,144.24,20.35281361]
[1746524309266,26.0,144.33,144.24,13.42]
[1746524309267,14.81253786,144.26,144.24,13.42]
[1746524309462,14.81253786,144.27,144.24,13.42]
[1746524309653,0.43216673,144.26,144.24,13.42]
[1746524310165,0.5743283,144.29,144.24,28.23253786]
[1746524310345,14.81253786,144.28,144.24,35.16542541]
[1746524311264,32.41253786,144.28,144.24,35.16542541]
[1746524312270,0.43216673,144.27,144.24,35.16542541]
[1746524312766,32.84470459,144.28,144.24,35.16542541]
[1746524313460,14.81253786,144.27,144.24,13.42]
[1746524313968,15.24470459,144.27,144.24,13.42]
[1746524314465,0.43216673,144.27,144.24,28.23253786]
[1746524314669,15.24470459,144.27,144.24,20.35283589]
[1746524314870,15.24470459,144.27,144.24,13.42]
[1746524315975,22.17629372,144.27,144.23,14.81253786]
[1746524317066,14.81253786,144.26,144.22,22.93343786]
[1746524317248,15.24470459,144.25,144.22,1.6311]
[1746524317568,15.24470459,144.25,144.2,20.3545518]
[1746524317569,14.81253786,144.24,144.2,28.23253786]
[1746524317749,0.43216673,144.23,144.2,28.23253786]
[1746524317952,0.43216673,144.23,144.2,13.42]
[1746524318168,0.43216673,144.23,144.2,35.16722923]
[1746524318352,0.43216673,144.24,144.21,14.81253786]
[1746524319169,0.43216673,144.24,144.21,21.74679544]
[1746524319372,18.03216673,144.25,144.22,14.81253786]
[1746524322070,32.84470459,144.25,144.22,21.74625551]
[1746524322274,32.84470459,144.25,144.22,14.81253786]
[1746524322455,32.84470459,144.25,144.21,21.74663712]
[1746524322649,39.77724166,144.25,144.21,6.93409926]
[1746524322963,39.77724166,144.25,144.2,35.16724091]
[1746524326687,24.9647038,144.25,144.2,20.35470305]
[1746524326983,14.81253786,144.24,144.2,35.16724091]
[1746524327156,0.43216673,144.23,144.2,35.16724091]
[1746524327658,0.43216673,144.23,144.21,14.81253786]
[1746524327880,0.43216673,144.24,144.21,14.81253786]
[1746524329570,22.17759903,144.24,144.2,35.16724091]
[1746524330206,15.24470459,144.24,144.2,35.16724091]
[1746524330563,22.17768872,144.24,144.2,35.16724091]
[1746524330864,0.43216673,144.24,144.21,14.81253786]
[1746524332993,0.43216673,144.24,144.22,14.81253786]
[1746524334393,0.43216673,144.24,144.21,21.74677685]
[1746524334582,0.43216673,144.24,144.21,14.81253786]
[1746524334888,0.43216673,144.24,144.21,21.74684898]
[1746524335588,0.43216673,144.24,144.21,14.81253786]
[1746524336270,15.24470459,144.24,144.21,21.74685634]
[1746524337185,15.24470459,144.24,144.2,20.35466934]
[1746524337481,15.24470459,144.24,144.2,35.1672072]
[1746524337687,15.24470459,144.24,144.21,14.81253786]
[1746524339991,0.43216673,144.24,144.21,21.74674843]
[1746524342189,32.41253786,144.25,144.21,21.74674843]
[1746524342190,18.03216673,144.25,144.22,14.81253786]
[1746524344503,18.03216673,144.25,144.22,21.74625937]
[1746524348703,18.03216673,144.25,144.22,14.81253786]
[1746524348999,18.03216673,144.25,144.22,21.7463762]
[1746524349203,17.6,144.25,144.23,14.81253786]
[1746524349380,0.43216673,144.26,144.23,14.81253786]
[1746524349789,0.43216673,144.26,144.23,9.49538236]
[1746524350302,7.3642287,144.26,144.23,9.49538236]
[1746524351702,7.3642287,144.26,144.23,14.83746547]
[1746524354898,0.43216673,144.26,144.23,14.83746547]
[1746524355213,0.43216673,144.26,144.23,21.77083434]
[1746524356312,7.36411754,144.26,144.23,14.83746547]
[1746524357718,22.20158301,144.26,144.22,21.77110827]
[1746524358313,18.03216673,144.27,144.23,14.83746547]
[1746524358710,0.43216673,144.28,144.25,14.83746547]
[1746524360023,22.20065627,144.28,144.24,23.32312285]
[1746524360520,15.2696322,144.28,144.24,23.32312285]
[1746524360814,0.43216673,144.28,144.25,14.83746547]
[1746524361418,17.6,144.29,144.26,14.83746547]
[1746524361625,17.6,144.29,144.27,14.83746547]
[1746524362002,7.36226585,144.3,144.27,14.83746547]
[1746524362298,7.36232524,144.3,144.27,14.83746547]
[1746524362896,0.43216673,144.3,144.27,14.83746547]
[1746524363522,0.43216673,144.3,144.27,21.76883075]
[1746524363716,39.36562165,144.34,144.29,14.83746547]
[1746524363916,17.6,144.34,144.31,14.83746547]
[1746524364216,17.6,144.34,144.25,32.06964886]
[1746524364217,14.83746547,144.32,144.29,1.6431]
[1746524364417,15.2696322,144.31,144.27,14.83746547]
[1746524364722,15.2696322,144.31,144.26,6.93179709]
[1746524365020,15.2696322,144.31,144.27,14.83746547]
[1746524365423,0.43216673,144.31,144.27,14.83746547]
[1746524365716,0.43216673,144.31,144.28,14.83746547]
[1746524365896,7.36186167,144.31,144.28,14.83746547]
[1746524366626,7.36186167,144.31,144.27,14.83746547]
[1746524368300,7.36186167,144.31,144.25,22.01709949]
[1746524368301,7.36186167,144.31,144.28,14.83746547]
[1746524368523,22.19932714,144.31,144.27,14.83746547]
[1746524369026,7.36186167,144.31,144.28,14.83746547]
[1746524373730,7.36186167,144.31,144.28,9.48947324]
[1746524378527,6.92969494,144.31,144.28,9.48947324]
[1746524379830,9.92163997,144.3,144.26,9.48947324]
[1746524380124,9.92163997,144.3,144.25,15.0848]
[1746524380322,9.48947324,144.29,144.25,15.0848]
[1746524380523,0.43216673,144.28,144.25,15.0848]
[1746524380723,0.43216673,144.28,144.25,24.57427324]
[1746524381538,9.92163997,144.29,144.25,24.57427324]
[1746524381722,16.85255618,144.29,144.25,24.57427324]
[1746524383741,9.48947324,144.28,144.25,13.42]
[1746524384042,0.43216673,144.27,144.25,13.42]
[1746524386344,0.43216673,144.27,144.21,21.86789631]
[1746524386345,16.85339532,144.27,144.21,21.86789631]
[1746524386641,16.85339532,144.27,144.23,9.48947324]
[1746524387133,6.93175535,144.27,144.24,9.48947324]
[1746524387436,6.93175535,144.27,144.21,21.86789631]
[1746524387638,6.93175535,144.27,144.24,9.48947324]
[1746524391432,9.48947324,144.25,144.17,14.9243]
[1746524391642,9.92163997,144.24,144.2,9.48947324]
[1746524391831,7.36518117,144.24,144.2,9.48947324]
[1746524393742,7.36518117,144.24,144.2,14.84211109]
[1746524394637,7.30099065,144.24,144.2,14.84211109]
[1746524395144,7.30099065,144.24,144.2,21.77673777]
[1746524395944,0.36797621,144.24,144.2,21.77673777]
[1746524396123,0.36797621,144.24,144.2,6.93462668]
[1746524396319,22.14298659,144.24,144.2,14.84211109]
[1746524396732,22.14298659,144.24,144.2,21.77685037]
[1746524398549,15.2100873,144.24,144.2,21.77685037]
[1746524400148,0.36797621,144.24,144.2,21.77685037]
[1746524401449,7.3010107,144.24,144.2,21.77685037]
[1746524401954,0.36797621,144.24,144.2,21.77685037]
[1746524402636,7.3009127,144.24,144.2,21.77685037]
[1746524404156,0.36797621,144.24,144.2,21.77685037]
[1746524404559,14.84211109,144.23,144.19,14.84211109]
[1746524405554,21.77563359,144.23,144.19,14.84211109]
[1746524406131,21.77563359,144.23,144.19,21.77732383]
[1746524406333,21.7752149,144.24,144.2,14.84211109]
[1746524406756,6.93310381,144.24,144.2,14.84211109]
[1746524406950,7.30057883,144.25,144.21,14.84211109]
[1746524407255,14.84211109,144.23,144.19,14.84211109]
[1746524408260,21.7758836,144.23,144.19,14.84211109]
[1746524408558,21.7758836,144.23,144.19,21.77738037]
[1746524408760,6.93377251,144.23,144.19,21.77738037]
[1746524409054,21.77520027,144.24,144.2,14.84211109]
[1746524409241,0.36797621,144.23,144.2,14.84211109]
[1746524410167,7.30135979,144.23,144.19,21.77738037]
[1746524410535,7.30135979,144.23,144.19,14.84211109]
[1746524411940,7.30135979,144.23,144.19,21.77726671]
[1746524413062,7.30135979,144.23,144.18,6.93577472]
[1746524413254,7.30135979,144.23,144.2,14.84211109]
[1746524413759,7.30135979,144.23,144.2,9.49989748]
[1746524414258,7.30141634,144.23,144.2,9.49989748]
[1746524414646,0.36797621,144.23,144.2,9.49989748]
[1746524414961,7.30049451,144.25,144.21,9.49989748]
[1746524415142,0.36797621,144.25,144.22,9.49989748]
[1746524416857,7.30053074,144.25,144.22,9.49989748]
[1746524417660,7.30053074,144.25,144.21,6.934274]
[1746524417661,7.30053074,144.25,144.21,9.49989748]
[1746524418159,0.36797621,144.25,144.21,9.49989748]
[1746524418859,7.30047804,144.25,144.21,9.49989748]
[1746524419359,0.36797621,144.25,144.21,9.49989748]
[1746524419571,17.6,144.26,144.23,9.49989748]
[1746524419872,16.94182413,144.27,144.23,9.49989748]
[1746524423568,9.86787369,144.27,144.23,16.43306347]
[1746524423865,24.89910811,144.28,144.25,9.49989748]
[1746524424062,17.96797621,144.28,144.25,16.43208836]
[1746524424259,0.36797621,144.3,144.27,9.49989748]
[1746524425867,7.29801983,144.3,144.27,9.49989748]
[1746524426442,0.36797621,144.3,144.28,9.49989748]
[1746524426641,0.36797621,144.31,144.28,9.49989748]
[1746524426945,0.36797621,144.31,144.27,8.56913159]
[1746524426946,0.36797621,144.32,144.29,9.49989748]
[1746524427264,9.86787369,144.32,144.27,8.56913159]
[1746524427447,9.86787369,144.32,144.28,9.49989748]
[1746524428267,16.79714833,144.32,144.27,8.56913159]
[1746524428472,9.49989748,144.3,144.26,13.42]
[1746524428672,9.49989748,144.3,144.26,22.91989748]
[1746524429480,9.49989748,144.3,144.26,29.85177852]
[1746524430069,0.51013778,144.31,144.28,9.49989748]
[1746524430266,9.86787369,144.37,144.28,26.0]
[1746524430570,9.49989748,144.36,144.32,9.49989748]
[1746524430869,0.36797621,144.35,144.32,9.49989748]
[1746524431066,0.36797621,144.35,144.29,6.93048721]
[1746524431375,0.36797621,144.35,144.32,9.49989748]
[1746524431747,0.36797621,144.35,144.32,14.81886302]
[1746524432176,22.256981,144.35,144.31,14.81886302]
[1746524432355,14.81886302,144.34,144.29,6.93048721]
[1746524432560,14.81886302,144.34,144.3,14.81886302]
[1746524433277,0.36797621,144.33,144.3,14.81886302]
[1746524433467,14.81886302,144.32,144.27,1.5797]
[1746524433770,15.18683923,144.32,144.28,14.81886302]
[1746524433969,0.36797621,144.32,144.29,14.81886302]
[1746524434289,14.81886302,144.33,144.29,14.81886302]
[1746524434477,22.115118,144.34,144.3,14.81886302]
[1746524436957,7.29625498,144.34,144.3,14.81886302]
[1746524437153,0.36797621,144.33,144.3,21.74886907]
[1746524437681,0.36797621,144.33,144.3,14.81886302]
[1746524439004,0.36797621,144.33,144.3,21.74874464]
[1746524439298,0.36797621,144.34,144.3,21.74874464]
[1746524442497,22.11504433,144.34,144.3,14.81886302]
[1746524442698,14.81886302,144.32,144.28,14.81886302]
[1746524443003,0.36797621,144.31,144.28,14.81886302]
[1746524443201,7.2975091,144.31,144.27,8.5107778]
[1746524443498,0.36797621,144.31,144.28,14.81886302]
[1746524444297,6.9286973,144.33,144.29,14.81886302]
[1746524444507,21.74756032,144.33,144.29,14.81886302]
[1746524444691,6.9286973,144.33,144.29,14.81886302]
[1746524445190,6.9286973,144.33,144.29,21.74929213]
[1746524445598,15.18683923,144.34,144.29,21.74929213]
[1746524445806,22.11515634,144.34,144.29,21.74929213]
[1746524446312,14.81886302,144.33,144.29,14.81886302]
[1746524446486,0.36797621,144.32,144.29,14.81886302]
[1746524447010,15.18683923,144.33,144.29,14.81886302]
[1746524447309,15.18683923,144.33,144.29,21.74930737]
[1746524447613,0.36797621,144.33,144.3,14.81886302]
[1746524450722,0.36797621,144.33,144.3,21.74882765]
[1746524451099,0.36797621,144.33,144.3,14.81886302]
[1746524451415,7.29660183,144.33,144.3,14.81886302]
[1746524451715,7.29660183,144.33,144.29,14.81886302]
[1746524452222,7.29660183,144.33,144.29,14.75467249]
[1746524452438,7.29660183,144.33,144.29,14.81886302]
[1746524452731,22.11546485,144.33,144.29,14.81886302]
[1746524456219,7.29660183,144.33,144.29,14.81886302]
[1746524456906,7.29660183,144.33,144.29,21.74922545]
[1746524460421,7.29660183,144.33,144.3,14.81886302]
[1746524461736,7.29660183,144.33,144.3,9.48681508]
[1746524463033,0.36797621,144.33,144.3,9.48681508]
[1746524463235,0.36797621,144.33,144.31,9.48681508]
[1746524463535,0.36797621,144.33,144.3,16.41673305]
[1746524464222,0.36797621,144.33,144.3,9.48681508]
[1746524465232,7.29655385,144.33,144.3,9.48681508]
[1746524465736,0.36797621,144.33,144.3,9.48681508]
[1746524466334,7.29664303,144.33,144.3,9.48681508]
[1746524466637,0.36797621,144.33,144.3,16.41674126]
[1746524467143,0.36797621,144.33,144.29,6.93025103]
[1746524467318,0.36797621,144.33,144.3,9.48681508]
[1746524470240,0.36797621,144.33,144.3,16.41681317]
[1746524470745,7.2966276,144.33,144.3,9.48681508]
[1746524471341,7.2966276,144.33,144.29,9.48681508]
[1746524472520,9.48681508,144.32,144.28,22.92681508]
[1746524472721,0.36797621,144.31,144.28,22.92681508]
[1746524474125,0.36797621,144.31,144.29,9.48681508]
[1746524475542,7.29773183,144.31,144.28,22.92681508]
[1746524476429,0.36797621,144.31,144.28,22.92681508]
[1746524477844,7.29763943,144.31,144.28,22.92681508]
[1746524478440,7.29763943,144.31,144.29,9.48681508]
[1746524480249,0.36797621,144.31,144.29,9.48681508]
[1746524481543,0.36797621,144.31,144.28,13.44]
[1746524481740,0.36797621,144.31,144.29,9.48681508]
[1746524490341,0.36797621,144.32,144.3,9.48681508]
[1746524491148,17.96797621,144.33,144.31,9.48681508]
[1746524491531,24.89666327,144.33,144.3,9.48681508]
[1746524499258,24.89666327,144.33,144.29,9.48681508]
[1746524506349,24.89666327,144.33,144.29,16.41724039]
[1746524506671,24.89666327,144.33,144.29,9.48681508]
[1746524523087,34.38347835,144.33,144.29,9.48681508]
[1746524523586,24.89666327,144.33,144.29,9.48681508]
[1746524524763,24.52868706,144.33,144.3,9.48681508]
[1746524525082,24.52872434,144.33,144.29,6.93040246]
[1746524525289,24.52872434,144.33,144.3,9.48681508]
[1746524527867,6.92872434,144.33,144.3,9.48681508]
[1746524528172,6.92872434,144.33,144.29,9.48681508]
[1746524528366,0.36797621,144.32,144.29,9.48681508]
[1746524529289,7.29748826,144.32,144.29,9.48681508]
[1746524533291,16.78430334,144.32,144.27,14.9997]
[1746524533480,16.78430334,144.32,144.28,9.48681508]
[1746524535177,9.62897665,144.31,144.27,24.48651508]
[1746524535369,6.93048721,144.29,144.27,13.42]
[1746524535892,0.36797621,144.28,144.27,13.42]
[1746524536077,0.36797621,144.28,144.23,15.10702652]
[1746524536078,0.36797621,144.28,144.25,9.48681508]
[1746524536285,0.36797621,144.28,144.24,9.48681508]
[1746524536580,9.85479129,144.28,144.24,9.48681508]
[1746524537392,16.41826305,144.27,144.23,14.9509]
[1746524537593,16.41826305,144.27,144.23,24.43771508]
[1746524537899,9.99695286,144.26,144.23,14.9509]
[1746524538280,9.99695286,144.26,144.23,13.42]
[1746524539912,6.93240901,144.25,144.23,13.42]
[1746524541211,9.62897665,144.24,144.2,1.5325]
[1746524541516,9.85479129,144.24,144.2,11.01931508]
[1746524541689,9.85479129,144.24,144.2,1.5325]
[1746524541887,9.62897665,144.22,144.2,1.5325]
[1746524542096,9.62897665,144.22,144.18,13.42]
[1746524542097,9.62897665,144.22,144.18,22.90681508]
[1746524543224,6.93433187,144.21,144.18,22.90681508]
[1746524543690,7.44419876,144.22,144.18,22.90681508]
[1746524546615,9.48681508,144.21,144.18,13.42]
[1746524546802,0.51013778,144.2,144.18,13.42]
[1746524546999,9.99695286,144.2,144.18,13.42]
[1746524547711,16.93214323,144.2,144.18,13.42]
[1746524548411,7.44532815,144.2,144.18,13.42]
[1746524550925,9.48681508,144.19,144.13,13.42]
[1746524551135,0.14216157,144.17,144.13,13.42]
[1746524551430,9.62897665,144.17,144.14,9.48681508]
[1746524551604,9.62897665,144.17,144.13,13.42]
[1746524551605,9.48681508,144.17,144.13,13.42]
[1746524551803,0.51013778,144.16,144.13,22.90681508]
[1746524552001,9.99695286,144.16,144.13,22.90681508]
[1746524552214,9.99695286,144.16,144.13,13.42]
[1746524552529,9.48681508,144.15,144.13,13.42]
[1746524552698,0.51013778,144.14,144.13,13.42]
[1746524553123,0.51013778,144.14,144.12,1.6009]
[1746524555240,16.93472141,144.14,144.1,245.92541097]
[1746524555423,16.93472141,144.14,144.1,0.6259545]
[1746524555735,0.14216157,144.12,144.1,0.6259545]
[1746524556738,0.51013778,144.12,144.1,0.6259545]
[1746524557038,0.36797621,144.12,144.1,0.6259545]
[1746524557222,0.51013778,144.12,144.1,0.6259545]
[1746524559334,0.51013778,144.12,144.1,10.11276958]
[1746524559720,0.51013778,144.12,144.1,0.6259545]
[1746524561435,0.51013778,144.12,144.1,10.11276958]
[1746524564754,0.36797621,144.14,144.11,9.48681508]
[1746524565051,0.36797621,144.14,144.12,9.48681508]
[1746524565435,0.51013778,144.14,144.1,7.56550979]
[1746524565750,0.51013778,144.14,144.11,9.48681508]
[1746524566541,0.14216157,144.14,144.13,9.48681508]
[1746524567244,17.96797621,144.15,144.13,9.48681508]
[1746524567440,17.6,144.15,144.14,9.48681508]
[1746524567833,17.6,144.15,144.14,14.8565505]
[1746524569751,0.14216157,144.16,144.14,14.8565505]
[1746524571849,0.14216157,144.16,144.13,14.8565505]
[1746524573154,0.14216157,144.16,144.14,14.8565505]
[1746524573342,0.36797621,144.17,144.15,14.8565505]
[1746524573546,0.51013778,144.18,144.15,14.8565505]
[1746524575254,7.44596345,144.18,144.15,14.8565505]
[1746524576257,7.44596345,144.18,144.14,14.8565505]
[1746524576558,22.30251395,144.18,144.14,14.8565505]
[1746524577750,7.44596345,144.18,144.14,14.8565505]
[1746524577948,0.51013778,144.18,144.15,14.8565505]
[1746524578556,7.44605127,144.18,144.14,14.8565505]
[1746524578749,22.30260177,144.18,144.14,14.8565505]
[1746524579946,14.99871207,144.16,144.13,1.5379]
[1746524580252,0.14216157,144.16,144.13,16.3944505]
[1746524580559,0.51013778,144.16,144.13,16.3944505]
[1746524582557,7.44691911,144.16,144.13,16.3944505]
[1746524586566,0.36797621,144.16,144.13,1.5379]
[1746524586744,0.36797621,144.16,144.13,16.3944505]
[1746524587965,0.14216157,144.15,144.13,11.04686116]
[1746524595277,6.93725882,144.15,144.13,1.5379]
[1746524595469,6.93725882,144.15,144.12,9.50896116]
[1746524595647,7.30523503,144.15,144.12,9.50896116]
[1746524595854,0.14216157,144.14,144.11,13.42]
[1746524596073,0.14216157,144.14,144.11,22.92896116]
[1746524596280,0.14216157,144.14,144.11,13.42]
[1746524597275,6.9381808,144.13,144.11,13.42]
[1746524597771,6.9381808,144.13,144.11,22.92896116]
[1746524598277,7.08005039,144.14,144.11,22.92896116]
[1746524598476,7.08005039,144.14,144.11,13.42]
[1746524598970,0.36797621,144.13,144.11,13.42]
[1746524599171,0.36797621,144.13,144.11,22.92896116]
[1746524599554,6.93866222,144.12,144.11,22.92896116]
[1746524599960,6.93866222,144.12,144.1,10.13491566]
[1746524600272,0.51013778,144.12,144.1,10.13491566]
[1746524602175,0.51013778,144.12,144.1,0.6259545]
[1746524602375,0.51013778,144.12,144.1,10.13491566]
[1746524603060,0.14216157,144.12,144.1,10.13491566]
[1746524603258,0.14216157,144.12,144.11,9.50896116]
[1746524606266,7.08082379,144.12,144.11,9.50896116]
[1746524606459,7.08082379,144.12,144.1,10.13491566]
[1746524607076,7.08082379,144.12,144.1,0.6259545]
[1746524607269,7.08082379,144.12,144.1,10.13491566]
[1746524608181,0.14216157,144.12,144.1,10.13491566]
[1746524608380,7.08087263,144.12,144.1,10.13491566]
[1746524609281,0.14216157,144.12,144.1,10.13491566]
[1746524609962,7.30638223,144.13,144.1,10.13491566]
[1746524610281,0.14216157,144.12,144.1,10.13491566]
[1746524610575,0.36797621,144.11,144.1,10.13491566]
[1746524611581,7.44928148,144.11,144.1,10.13491566]
[1746524613178,7.44928148,144.11,144.1,0.6259545]